bitfinex-derivatives/quotes_BNBF0:USTF0_20250101
["timestamp","ask_amount","ask_price","bid_price","bid_amount"]
[1735758008818,1.47894207,706.8,705.45,1.05996435]
[1735758009923,1.47894207,706.8,705.71,1.05996435]
[1735758011025,1.47894207,706.8,705.26,1.05996435]
[1735758012024,1.47894207,706.8,705.23,1.05996435]
[1735758012926,0.60902337,708.1,705.28,1.05996435]
[1735758012927,1.0619796,707.49,705.28,1.05996435]
[1735758013126,1.47859647,706.89,705.28,1.05996435]
[1735758013323,1.0619796,707.49,705.28,1.05996435]
[1735758013527,0.26057935,707.48,705.28,1.05996435]
[1735758013823,0.26057935,707.47,705.28,1.05996435]
[1735758014025,0.26057935,707.47,704.91,1.05996435]
[1735758014026,0.26057935,707.46,705.63,1.05996435]
[1735758014225,1.0619796,707.61,705.63,1.05996435]
[1735758014226,1.0619796,707.39,705.63,1.05996435]
[1735758014431,0.26057935,707.38,705.63,1.05996435]
[1735758015126,0.28274146,707.36,705.63,1.05996435]
[1735758015431,0.28274146,707.36,705.55,1.05996435]
[1735758015432,0.26057717,707.35,705.55,1.05996435]
[1735758015828,0.28274146,707.36,705.55,1.05996435]
[1735758016024,0.26057411,707.35,705.55,1.05996435]
[1735758016427,0.26057411,707.34,705.5,1.05996435]
[1735758016625,0.26057411,707.33,705.5,1.05996435]
[1735758016824,0.26057411,707.32,705.5,1.05996435]
[1735758017030,0.26057411,707.31,705.5,1.05996435]
[1735758017229,0.26057411,707.3,705.5,1.05996435]
[1735758017432,0.26057411,707.29,705.5,1.05996435]
[1735758017633,0.26057411,707.28,705.51,1.05996435]
[1735758017931,0.26058051,707.27,705.51,1.05996435]
[1735758018131,0.26058051,707.26,705.51,1.05996435]
[1735758018332,0.26058051,707.25,705.51,1.05996435]
[1735758018532,0.26058051,707.24,705.51,1.05996435]
[1735758018731,0.26058051,707.23,705.49,1.05996435]
[1735758018928,0.26058051,707.22,705.49,1.05996435]
[1735758019131,0.28274146,707.36,705.49,1.05996435]
[1735758019132,0.26058051,707.21,705.49,1.05996435]
[1735758019330,0.26058051,707.2,705.49,1.05996435]
[1735758019528,0.26058051,707.19,705.49,1.05996435]
[1735758019731,0.26058051,707.18,705.49,1.05996435]
[1735758019933,0.26058051,707.17,705.46,1.05996435]
[1735758020133,0.26058051,707.16,705.46,1.05996435]
[1735758020432,0.26057712,707.15,705.46,1.05996435]
[1735758020634,0.26057712,707.14,705.46,1.05996435]
[1735758020834,0.26057712,707.13,705.46,1.05996435]
[1735758021029,0.26057712,707.12,705.42,1.05996435]
[1735758021227,0.26057712,707.11,705.42,1.05996435]
[1735758021431,0.26057712,707.1,705.42,1.05996435]
[1735758021632,0.26057712,707.09,705.42,1.05996435]
[1735758021829,0.26057712,707.08,705.42,1.05996435]
[1735758022029,0.26057712,707.07,705.42,1.05996435]
[1735758022232,0.26057712,707.06,705.42,1.05996435]
[1735758022428,0.26057712,707.05,705.42,1.05996435]
[1735758022634,0.26057712,707.04,705.42,1.05996435]
[1735758022832,0.26057712,707.35,705.42,1.05996435]
[1735758023138,0.260559,707.34,705.44,1.05996435]
[1735758023437,0.260559,707.33,705.44,1.05996435]
[1735758023730,0.260559,707.32,705.44,1.05996435]
[1735758023932,0.260559,707.35,705.44,1.05996435]
[1735758024136,0.260559,707.34,705.44,1.05996435]
[1735758024432,0.260559,707.33,705.44,1.05996435]
[1735758024631,0.260559,707.32,705.44,1.05996435]
[1735758024838,0.260559,707.31,705.44,1.05996435]
[1735758025038,0.26055684,707.3,705.44,1.05996435]
[1735758025238,0.26055684,707.29,705.44,1.05996435]
[1735758025437,0.26055684,707.28,705.44,1.05996435]
[1735758025641,0.2605639,707.27,705.43,1.05996435]
[1735758026735,0.2605639,707.26,705.43,1.05996435]
[1735758026932,0.2605639,707.25,705.44,1.05996435]
[1735758027259,0.2605639,707.24,705.44,1.05996435]
[1735758027439,0.2605639,707.23,705.44,1.05996435]
[1735758027737,0.2605639,707.22,705.44,1.05996435]
[1735758027938,0.2605639,707.21,705.44,1.05996435]
[1735758028134,1.47812021,707.28,705.4,1.05996435]
[1735758028341,0.26053291,707.27,705.4,1.05996435]
[1735758029541,0.26053291,707.27,705.51,1.05996435]
[1735758030733,0.2605072,707.26,705.51,1.05996435]
[1735758031043,0.2605072,707.25,705.5,1.05996435]
[1735758031340,1.47812021,707.28,705.5,1.05996435]
[1735758031341,0.2605072,707.24,705.5,1.05996435]
[1735758031536,1.47812021,707.28,705.5,1.05996435]
[1735758031737,0.26050672,707.27,705.5,1.05996435]
[1735758032137,0.26050672,707.27,705.49,1.05996435]
[1735758033342,0.26050672,707.27,705.5,1.05996435]
[1735758034639,0.26050672,707.27,705.49,1.05996435]
[1735758035139,1.47812021,707.28,705.49,1.05996435]
[1735758035440,0.26051018,707.27,705.49,1.05996435]
[1735758035642,0.26051018,707.27,705.43,1.05996435]
[1735758036244,0.26050777,707.26,705.43,1.05996435]
[1735758036444,0.26050777,707.25,705.43,1.05996435]
[1735758036643,1.47812021,707.28,705.43,1.05996435]
[1735758036841,0.26050944,707.27,705.45,1.05996435]
[1735758037940,0.26050944,707.27,705.46,1.05996435]
[1735758038542,1.47812021,707.28,705.46,1.05996435]
[1735758038741,0.26051034,707.27,705.46,1.05996435]
[1735758039345,1.47812021,707.28,705.47,1.05996435]
[1735758040546,1.47812021,707.28,705.53,1.05996435]
[1735758041644,1.47812021,707.28,705.68,1.05996435]
[1735758042649,1.47812021,707.28,705.78,1.05996435]
[1735758043446,1.47812021,707.28,706.03,1.05996435]
[1735758044750,0.26048108,707.27,706.02,1.05996435]
[1735758045650,1.47812021,707.28,706.02,1.05996435]
[1735758045953,0.26049652,707.27,705.97,1.05996435]
[1735758046651,0.26049228,707.26,706.08,1.05996435]
[1735758046844,0.26049228,707.25,706.08,1.05996435]
[1735758047044,0.26049228,707.24,706.08,1.05996435]
[1735758047351,0.2604924,707.23,706.08,1.05996435]
[1735758047543,0.2604924,707.22,706.08,1.05996435]
[1735758047747,1.47812021,707.28,706.09,1.05996435]
[1735758047950,0.26050327,707.27,706.09,1.05996435]
[1735758048948,0.26050327,707.27,705.07,2.16409389]
[1735758048949,0.26050327,707.27,706.13,1.05996435]
[1735758050051,0.26050327,707.27,706.14,1.05996435]
[1735758051854,0.26050935,707.26,706.14,1.05996435]
[1735758052048,0.26050935,707.25,706.14,1.05996435]
[1735758052247,0.26050935,707.24,706.14,1.05996435]
[1735758052449,0.26050935,707.23,706.14,1.05996435]
[1735758052749,0.26050935,707.22,706.14,1.05996435]
[1735758052954,0.26050935,707.21,706.14,1.05996435]
[1735758053254,0.26050935,707.2,706.14,1.05996435]
[1735758053453,1.0619796,707.31,706.16,1.05996435]
[1735758053454,0.26050935,707.19,706.16,1.05996435]
[1735758053655,1.0619796,707.31,706.16,1.05996435]
[1735758053656,0.26050935,707.18,706.16,1.05996435]
[1735758053854,0.26050935,707.17,706.16,1.05996435]
[1735758054155,0.26050935,707.16,706.16,1.05996435]
[1735758054350,1.47768086,707.2,706.16,1.05996435]
[1735758054548,0.2605055,707.19,706.16,1.05996435]
[1735758055958,0.2605055,707.19,706.19,1.05996435]
[1735758057058,1.47768086,707.2,706.19,1.05996435]
[1735758057259,0.26050192,707.19,706.22,1.05996435]
[1735758057757,1.47768086,707.2,706.22,1.05996435]
[1735758058161,1.47768086,707.2,706.08,1.05996435]
[1735758058855,1.47768086,707.2,706.13,1.05996435]
[1735758059960,1.47768086,707.2,706.14,1.05996435]
[1735758060956,1.47768086,707.2,706.13,1.05996435]
[1735758062263,1.47768086,707.2,705.72,1.05996435]
[1735758062264,1.47768086,707.2,706.0,1.05996435]
[1735758063158,1.47768086,707.2,706.07,1.05996435]
[1735758064560,1.47768086,707.2,705.33,1.27195722]
[1735758064561,1.47768086,707.2,706.1,1.05996435]
[1735758066761,1.47768086,707.2,706.11,1.05996435]
[1735758068262,1.47768086,707.2,706.21,1.05996435]
[1735758069260,1.47768086,707.2,705.8,1.05996435]
[1735758069261,1.47768086,707.2,706.31,1.05996435]
[1735758070668,1.47768086,707.2,706.28,1.05996435]
[1735758071868,1.47768086,707.2,706.29,1.05996435]
[1735758072370,0.26049651,707.19,706.29,1.05996435]
[1735758072568,1.47768086,707.2,706.29,1.05996435]
[1735758073162,0.2604923,707.19,706.29,1.05996435]
[1735758073365,1.47768086,707.2,706.29,1.05996435]
[1735758073565,0.2604923,707.19,706.29,1.05996435]
[1735758073769,0.2604923,707.19,706.26,1.05996435]
[1735758074768,0.26050151,707.18,706.26,1.05996435]
[1735758074971,0.26050151,707.17,706.27,1.05996435]
[1735758075168,0.26054033,707.16,706.27,1.05996435]
[1735758075470,0.26054033,707.15,706.27,1.05996435]
[1735758075670,0.26054033,707.14,706.27,1.05996435]
[1735758075865,0.26054033,707.13,706.27,1.05996435]
[1735758076066,0.26054033,707.12,706.06,1.05996435]
[1735758076268,0.26054033,707.11,706.06,1.05996435]
[1735758076471,0.26054033,707.1,706.06,1.05996435]
[1735758077172,0.26057137,707.09,706.06,1.05996435]
[1735758077374,0.26057137,707.08,706.06,1.05996435]
[1735758077674,1.47798419,707.11,705.94,1.05996435]
[1735758078074,0.26056258,707.1,705.94,1.05996435]
[1735758078672,0.26056258,707.1,705.95,1.05996435]
[1735758079873,1.47798419,707.11,705.99,1.05996435]
[1735758079874,0.26056732,707.09,705.99,1.05996435]
[1735758080174,0.26056732,707.08,705.99,1.05996435]
[1735758080472,0.54342474,707.07,705.99,1.05996435]
[1735758080675,0.28286142,707.06,705.99,1.05996435]
[1735758081071,0.28286142,707.06,705.98,1.05996435]
[1735758082271,0.28286142,707.06,705.47,0.72078073]
[1735758082272,0.28286142,707.06,705.89,1.05996435]
[1735758083477,0.28286142,707.06,705.86,1.05996435]
[1735758085874,0.28286142,707.06,705.89,1.05996435]
[1735758086272,0.26054168,707.05,705.89,1.05996435]
[1735758086978,0.26054168,707.05,705.98,1.05996435]
[1735758087577,0.28286142,707.06,705.98,1.05996435]
[1735758090081,0.28286142,707.06,706.05,1.05996435]
[1735758091283,0.28286142,707.06,706.01,1.05996435]
[1735758092481,0.28286142,707.06,706.0,1.05996435]
[1735758093586,0.28286142,707.06,706.02,1.05996435]
[1735758094678,0.28286142,707.06,706.13,1.05996435]
[1735758095984,0.28286142,707.06,706.11,1.05996435]
[1735758097081,0.28286142,707.06,706.01,1.05996435]
[1735758098184,0.28286142,707.06,705.9,1.05996435]
[1735758099183,0.28286142,707.06,705.86,1.05996435]
[1735758100487,0.28286142,707.06,705.88,1.05996435]
[1735758101488,0.28286142,707.06,705.86,1.05996435]
[1735758102684,0.28286142,707.06,705.95,1.05996435]
[1735758103090,0.26056676,707.05,705.95,1.05996435]
[1735758103789,0.26056676,707.05,705.93,1.05996435]
[1735758103988,1.47813591,707.04,705.93,1.05996435]
[1735758104184,0.26056676,707.03,705.93,1.05996435]
[1735758104383,1.47813591,707.04,705.93,1.05996435]
[1735758104586,0.26059495,707.03,705.93,1.05996435]
[1735758104889,0.26059495,707.03,705.88,1.05996435]
[1735758105989,0.26059495,707.03,705.89,1.05996435]
[1735758107590,0.26059495,707.03,705.84,1.05996435]
[1735758108189,0.26060008,707.02,705.84,1.05996435]
[1735758108386,0.26060008,707.01,705.84,1.05996435]
[1735758108591,0.26060008,707.0,705.84,1.05996435]
[1735758108786,1.47813591,707.04,705.82,1.05996435]
[1735758108986,0.26060415,706.99,705.82,1.05996435]
[1735758109190,0.26060415,706.98,705.82,1.05996435]
[1735758109392,0.26060415,706.97,705.82,1.05996435]
[1735758109592,0.26060415,706.96,705.82,1.05996435]
[1735758109789,1.47813591,707.04,705.82,1.05996435]
[1735758109991,0.26060084,707.03,705.82,1.05996435]
[1735758111391,0.26060084,707.03,705.83,1.05996435]
[1735758113192,0.26060084,707.03,705.74,1.05996435]
[1735758113391,1.47813591,707.04,705.74,1.05996435]
[1735758113593,0.26060319,707.03,705.74,1.05996435]
[1735758114296,0.26060319,707.03,705.77,1.05996435]
[1735758115292,0.26058711,707.02,705.77,1.05996435]
[1735758115595,1.47813591,707.04,705.77,1.05996435]
[1735758115789,0.2605824,707.03,705.76,1.05996435]
[1735758115988,1.47813591,707.04,705.76,1.05996435]
[1735758115989,0.26058508,707.02,705.76,1.05996435]
[1735758116187,1.47813591,707.04,705.76,1.05996435]
[1735758116391,0.5434585,707.03,705.76,1.05996435]
[1735758116591,0.26058508,707.02,705.76,1.05996435]
[1735758116989,0.26058508,707.02,705.79,1.05996435]
[1735758118096,0.26058508,707.02,705.42,0.71935564]
[1735758118097,0.26058508,707.02,705.77,1.05996435]
[1735758118796,0.26059364,707.01,705.77,1.05996435]
[1735758118997,0.28287342,707.03,705.77,1.05996435]
[1735758122402,0.28287342,707.03,705.86,1.05996435]
[1735758123809,0.28287342,707.03,705.89,1.05996435]
[1735758125110,0.26055372,707.02,705.89,1.05996435]
[1735758125609,0.28287342,707.03,705.89,1.05996435]
[1735758126205,0.26054994,707.02,705.89,1.05996435]
[1735758126409,0.26054994,707.02,705.96,1.05996435]
[1735758127515,0.26054994,707.02,705.98,1.05996435]
[1735758128013,0.28287342,707.03,705.98,1.05996435]
[1735758128417,0.28287342,707.03,705.53,1.27195722]
[1735758128418,0.28287342,707.03,706.01,1.05996435]
[1735758129714,0.28287342,707.03,706.06,1.05996435]
[1735758130914,0.28287342,707.03,706.04,1.05996435]
[1735758132215,0.28287342,707.03,706.07,1.05996435]
[1735758133211,0.28287342,707.03,706.06,1.05996435]
[1735758133916,0.28287342,707.03,706.07,1.05996435]
[1735758135515,0.28287342,707.03,706.08,1.05996435]
[1735758137010,0.28287342,707.03,706.05,1.05996435]
[1735758138315,0.28287342,707.03,706.11,1.05996435]
[1735758139717,0.28287342,707.03,705.66,1.27195722]
[1735758139718,0.28287342,707.03,705.99,1.05996435]
[1735758140815,0.26056869,707.02,705.99,1.05996435]
[1735758141010,0.28287342,707.03,705.99,1.05996435]
[1735758141215,0.28287342,707.03,705.92,1.05996435]
[1735758142012,0.28287342,707.03,705.85,1.05996435]
[1735758142916,0.26060154,707.02,705.85,1.05996435]
[1735758143116,0.28287342,707.03,705.83,1.05996435]
[1735758143311,0.26059999,707.02,705.83,1.05996435]
[1735758143808,0.28287342,707.03,705.83,1.05996435]
[1735758144014,0.26060253,707.02,705.83,1.05996435]
[1735758144315,0.26060253,707.02,705.75,1.05996435]
[1735758145718,0.26060253,707.02,705.77,1.05996435]
[1735758147117,0.28287342,707.03,705.78,1.05996435]
[1735758147118,0.26062546,707.01,705.78,1.05996435]
[1735758147317,0.26062546,707.0,705.78,1.05996435]
[1735758147518,0.26062546,706.99,705.78,1.05996435]
[1735758147813,0.26062546,706.98,705.78,1.05996435]
[1735758148016,0.26062546,706.97,705.78,1.05996435]
[1735758148212,0.26062546,706.97,705.25,1.27195722]
[1735758148213,0.26062546,706.96,705.73,1.05996435]
[1735758148410,0.26062546,706.95,705.73,1.05996435]
[1735758148612,0.26062546,706.94,705.73,1.05996435]
[1735758149521,0.26062546,706.94,705.7,1.05996435]
[1735758149717,1.47840279,706.95,705.7,1.05996435]
[1735758150020,0.26062484,706.94,705.7,1.05996435]
[1735758150618,0.26062484,706.94,705.68,1.05996435]
[1735758150817,0.28291344,706.93,705.68,1.05996435]
[1735758151422,0.28291344,706.93,705.69,1.05996435]
[1735758152824,0.28291344,706.93,705.73,1.05996435]
[1735758153224,0.26060029,706.92,705.73,1.05996435]
[1735758153625,0.28291344,706.93,705.73,1.05996435]
[1735758153821,0.26059811,706.92,705.74,1.05996435]
[1735758154023,0.28291344,706.93,705.74,1.05996435]
[1735758155523,0.28291344,706.93,705.83,1.05996435]
[1735758156825,0.28291344,706.93,705.68,1.05996435]
[1735758158125,0.28291344,706.93,704.65,2.16409389]
[1735758158126,0.28291344,706.93,705.6,1.05996435]
[1735758160128,0.28291344,706.93,705.61,1.05996435]
[1735758161024,0.28291344,706.93,705.6,1.05996435]
[1735758162226,0.28291344,706.93,705.61,1.05996435]
[1735758162422,0.26059251,706.92,705.61,1.05996435]
[1735758162926,0.26060225,706.91,705.61,1.05996435]
[1735758163126,0.28291344,706.93,705.61,1.05996435]
[1735758163327,0.28291344,706.93,705.82,1.05996435]
[1735758164221,0.28291344,706.93,705.73,1.05996435]
[1735758167322,0.28291344,706.93,705.75,1.05996435]
[1735758168229,0.28291344,706.93,705.76,1.05996435]
[1735758169427,0.28291344,706.93,705.02,2.44777378]
[1735758169428,0.28291344,706.93,705.77,1.05996435]
[1735758170930,0.28291344,706.93,705.81,1.05996435]
[1735758173330,0.28291344,706.93,705.87,1.05996435]
[1735758174432,0.28291344,706.93,705.26,1.27195722]
[1735758174433,0.28291344,706.93,705.9,1.05996435]
[1735758175931,0.28291344,706.93,705.94,1.05996435]
[1735758178433,0.28291344,706.93,705.93,1.05996435]
[1735758179834,0.28291344,706.93,705.92,1.05996435]
[1735758181134,0.28291344,706.93,705.96,1.05996435]
[1735758182135,0.28291344,706.93,705.6,1.05996435]
[1735758183236,0.28291344,706.93,705.61,1.05996435]
[1735758184235,0.28291344,706.93,705.79,1.05996435]
[1735758185434,0.28291344,706.93,705.81,1.05996435]
[1735758188036,0.28291344,706.93,706.13,1.05996435]
[1735758188838,0.28291344,706.93,706.14,1.05996435]
[1735758189836,0.28291344,706.93,706.13,1.05996435]
[1735758191835,0.28291344,706.93,706.12,1.05996435]
[1735758193042,0.28291344,706.93,706.07,1.05996435]
[1735758193942,0.28291344,706.93,706.05,1.05996435]
[1735758194641,0.28291344,706.93,706.01,1.05996435]
[1735758195945,0.28291344,706.93,706.0,1.05996435]
[1735758197243,0.28291344,706.93,705.66,0.71851366]
[1735758197244,0.28291344,706.93,706.01,1.05996435]
[1735758198846,0.28291344,706.93,706.0,1.05996435]
[1735758199946,0.28291344,706.93,706.06,1.05996435]
[1735758201245,0.28291344,706.93,706.13,1.05996435]
[1735758202748,0.28291344,706.93,706.12,1.05996435]
[1735758204144,0.28291344,706.93,706.13,1.05996435]
[1735758206344,0.28291344,706.93,706.17,1.05996435]
[1735758206848,1.4777959,707.15,706.17,1.05996435]
[1735758207350,1.4777959,707.15,706.18,1.05996435]
[1735758208551,1.4777959,707.15,706.22,1.05996435]
[1735758211649,0.26048957,707.14,706.21,1.05996435]
[1735758212256,1.4777959,707.15,706.21,1.05996435]
[1735758212556,0.26049169,707.14,706.21,1.05996435]
[1735758212853,0.26049169,707.14,706.2,1.05996435]
[1735758213657,0.26049732,707.13,706.2,1.05996435]
[1735758213852,0.26049732,707.14,706.17,1.05996435]
[1735758214059,0.26049732,707.13,706.17,1.05996435]
[1735758214260,1.4777959,707.15,706.17,1.05996435]
[1735758214451,0.26049559,707.14,706.17,1.05996435]
[1735758214657,0.26049559,707.14,706.2,1.05996435]
[1735758216053,0.26049559,707.14,705.77,1.27195722]
[1735758216054,0.26049559,707.14,706.21,1.05996435]
[1735758216253,1.4777959,707.15,706.21,1.05996435]
[1735758216462,0.26049973,707.14,706.21,1.05996435]
[1735758217057,0.26050093,707.13,706.21,1.05996435]
[1735758217258,1.4777959,707.15,706.21,1.05996435]
[1735758217459,0.26050093,707.14,706.21,1.05996435]
[1735758218361,0.26050093,707.14,706.23,1.05996435]
[1735758219160,1.4777959,707.15,706.23,1.05996435]
[1735758219463,1.4777959,707.15,706.25,1.05996435]
[1735758219956,0.26050171,707.14,706.25,1.05996435]
[1735758220160,1.4777959,707.15,706.25,1.05996435]
[1735758220361,1.4777959,707.15,706.24,1.05996435]
[1735758220563,0.26050087,707.14,706.24,1.05996435]
[1735758221263,1.4777959,707.15,706.25,1.05996435]
[1735758221466,0.26050025,707.14,706.25,1.05996435]
[1735758221662,1.4777959,707.15,706.25,1.05996435]
[1735758223561,1.4777959,707.15,706.3,1.05996435]
[1735758224967,1.4777959,707.15,705.82,1.27195722]
[1735758224968,1.4777959,707.15,706.28,1.05996435]
[1735758226067,1.4777959,707.15,706.31,1.05996435]
[1735758227066,1.4777959,707.15,706.3,1.05996435]
[1735758228367,1.4777959,707.15,705.8,1.27195722]
[1735758228368,1.4777959,707.15,706.15,1.05996435]
[1735758229173,1.4777959,707.15,706.16,1.05996435]
[1735758230371,1.4777959,707.15,705.95,1.05996435]
[1735758231771,1.4777959,707.15,705.99,1.05996435]
[1735758232574,1.4777959,707.15,706.0,1.05996435]
[1735758233369,1.4777959,707.15,705.99,1.05996435]
[1735758234474,1.4777959,707.15,705.98,1.05996435]
[1735758234673,1.0619796,707.72,705.98,1.05996435]
[1735758234869,1.47770178,707.24,705.98,1.05996435]
[1735758235069,0.28260562,707.7,705.98,1.05996435]
[1735758235376,1.47764949,707.24,706.02,1.05996435]
[1735758235575,0.28260562,707.7,706.02,1.05996435]
[1735758236575,1.34458522,707.7,706.06,1.05996435]
[1735758236975,1.47735152,707.69,706.06,1.05996435]
[1735758237175,0.2826176,707.67,706.06,1.05996435]
[1735758239077,0.2826176,707.67,706.05,1.05996435]
[1735758239276,0.26044376,707.66,706.05,1.05996435]
[1735758239578,0.28262958,707.64,706.05,1.05996435]
[1735758239774,0.26044376,707.63,706.05,1.05996435]
[1735758240076,0.28264156,707.61,706.05,1.05996435]
[1735758240277,1.0619796,707.51,706.24,1.05996435]
[1735758240577,0.26044708,707.5,706.24,1.05996435]
[1735758240775,0.2826895,707.49,706.24,1.05996435]
[1735758240976,0.26044398,707.48,706.24,1.05996435]
[1735758241170,0.28269749,707.47,706.24,1.05996435]
[1735758241371,0.26044398,707.46,706.24,1.05996435]
[1735758241577,0.26044398,707.46,706.25,1.05996435]
[1735758242177,0.26044584,707.45,706.25,1.05996435]
[1735758242374,0.28269749,707.47,706.25,1.05996435]
[1735758242574,0.26043712,707.46,706.25,1.05996435]
[1735758242771,0.26043712,707.46,706.28,1.05996435]
[1735758243981,0.26043712,707.46,706.26,1.05996435]
[1735758244575,0.28269749,707.47,706.26,1.05996435]
[1735758244880,0.26044658,707.46,706.26,1.05996435]
[1735758245774,0.26044658,707.46,706.3,1.05996435]
[1735758247081,1.47728881,707.45,706.3,1.05996435]
[1735758247784,0.26042823,707.44,706.3,1.05996435]
[1735758248082,0.26043537,707.43,706.3,1.05996435]
[1735758248281,0.26043537,707.43,705.61,2.16409389]
[1735758248282,0.26042955,707.42,706.29,1.05996435]
[1735758248476,0.26042955,707.41,706.29,1.05996435]
[1735758248678,0.26043417,707.4,706.29,1.05996435]
[1735758248876,0.26043417,707.39,706.29,1.05996435]
[1735758249178,1.47728881,707.45,706.29,1.05996435]
[1735758249374,0.26042442,707.44,706.29,1.05996435]
[1735758249579,0.26042442,707.44,706.32,1.05996435]
[1735758249983,0.26042105,707.43,706.32,1.05996435]
[1735758250180,1.47728881,707.45,706.32,1.05996435]
[1735758250380,0.26042809,707.44,706.32,1.05996435]
[1735758250782,0.379,707.43,706.35,1.05996435]
[1735758250988,0.26042809,707.42,706.35,1.05996435]
[1735758252185,0.26042809,707.42,706.31,1.05996435]
[1735758252380,0.26043196,707.41,706.31,1.05996435]
[1735758252679,0.379,707.43,706.31,1.05996435]
[1735758252884,0.26042936,707.42,706.31,1.05996435]
[1735758253285,0.26042936,707.42,706.33,1.05996435]
[1735758254184,0.26042936,707.42,705.99,1.05996435]
[1735758254185,0.379,707.43,706.32,1.05996435]
[1735758254688,0.26042992,707.42,706.32,1.05996435]
[1735758254884,0.379,707.43,706.32,1.05996435]
[1735758255185,0.379,707.43,706.33,1.05996435]
[1735758255987,0.379,707.43,706.36,1.05996435]
[1735758256782,0.26041414,707.42,706.36,1.05996435]
[1735758257486,0.379,707.43,706.36,1.05996435]
[1735758257688,0.379,707.43,706.4,1.05996435]
[1735758258685,0.379,707.43,706.13,0.7176449]
[1735758258686,0.379,707.43,706.39,1.05996435]
[1735758259992,0.379,707.43,706.37,1.05996435]
[1735758261993,0.379,707.43,706.36,1.05996435]
[1735758262896,0.379,707.43,706.37,1.05996435]
[1735758264089,0.379,707.43,706.38,1.05996435]
[1735758265391,0.379,707.43,706.37,1.05996435]
[1735758266492,0.379,707.43,706.36,1.05996435]
[1735758268092,0.379,707.43,706.35,1.05996435]
[1735758268592,1.47728881,707.45,706.35,1.05996435]
[1735758270000,1.47728881,707.45,706.36,1.05996435]
[1735758270195,0.28270948,707.44,706.36,1.05996435]
[1735758271595,0.28270948,707.44,706.34,1.05996435]
[1735758272793,0.28270948,707.44,706.36,1.05996435]
[1735758275402,0.28270948,707.44,706.4,1.05996435]
[1735758276702,0.28270948,707.44,706.37,1.05996435]
[1735758278505,0.28270948,707.44,706.45,1.05996435]
[1735758279709,0.28270948,707.44,706.47,1.05996435]
[1735758280605,0.38,707.43,706.47,1.05996435]
[1735758280812,0.38,707.43,706.48,1.05996435]
[1735758282203,0.38,707.43,706.47,1.05996435]
[1735758283709,0.2604244,707.42,706.47,1.05996435]
[1735758284004,0.38,707.43,706.47,1.05996435]
[1735758284310,0.26042566,707.42,706.47,1.05996435]
[1735758284610,1.0619796,707.41,706.48,1.05996435]
[1735758285611,1.0619796,707.41,706.49,1.05996435]
[1735758285804,0.26042516,707.4,706.49,1.05996435]
[1735758286807,1.0619796,707.34,706.55,1.05996435]
[1735758287512,1.47735152,707.33,706.55,1.05996435]
[1735758289218,1.47735152,707.33,706.19,1.05996435]
[1735758289414,0.28275745,707.32,706.19,1.05996435]
[1735758290009,0.28275745,707.32,706.31,1.05996435]
[1735758291016,0.28275745,707.32,706.34,1.05996435]
[1735758293414,0.28275745,707.32,706.33,1.05996435]
[1735758294519,0.28275745,707.32,706.23,1.05996435]
[1735758295816,0.28275745,707.32,705.96,1.05996435]
[1735758295817,0.28275745,707.32,706.24,1.05996435]
[1735758298124,0.28275745,707.32,706.18,1.05996435]
[1735758299025,0.28275745,707.32,706.16,1.05996435]
[1735758299917,0.28275745,707.32,706.17,1.05996435]
[1735758301224,0.28275745,707.32,706.19,1.05996435]
[1735758302125,0.26048804,707.31,706.17,1.05996435]
[1735758302622,0.26049547,707.3,706.17,1.05996435]
[1735758302822,0.26049547,707.29,706.17,1.05996435]
[1735758303021,0.26049547,707.28,706.17,1.05996435]
[1735758303220,0.26049547,707.27,706.17,1.05996435]
[1735758303420,0.26049547,707.26,706.17,1.05996435]
[1735758303619,0.28275745,707.32,706.15,1.05996435]
[1735758303818,0.26049482,707.31,706.15,1.05996435]
[1735758304025,1.73820706,707.31,706.15,1.05996435]
[1735758304228,0.26049482,707.3,706.15,1.05996435]
[1735758304729,0.26049482,707.3,706.16,1.05996435]
[1735758305928,0.28276944,707.29,706.13,1.05996435]
[1735758306227,0.26049482,707.28,706.13,1.05996435]
[1735758307130,0.26049482,707.28,706.12,1.05996435]
[1735758308929,0.26049482,707.28,706.03,1.05996435]
[1735758309726,0.54329872,707.27,706.03,1.05996435]
[1735758310030,0.26052128,707.26,705.99,1.05996435]
[1735758310531,0.26052757,707.25,705.99,1.05996435]
[1735758311130,0.26052757,707.24,705.96,1.05996435]
[1735758311330,0.26052757,707.23,705.96,1.05996435]
[1735758311532,0.2605374,707.22,705.96,1.05996435]
[1735758311728,0.2605374,707.21,705.96,1.05996435]
[1735758312031,0.2605374,707.2,705.96,1.05996435]
[1735758312229,0.2605374,707.19,705.96,1.05996435]
[1735758312530,0.2605374,707.18,705.96,1.05996435]
[1735758312731,0.2605374,707.17,705.96,1.05996435]
[1735758312932,0.54335882,707.16,705.96,1.05996435]
[1735758313132,0.2605374,707.15,705.96,1.05996435]
[1735758313535,0.2605374,707.15,705.88,1.05996435]
[1735758313727,0.28282942,707.14,705.88,1.05996435]
[1735758313931,0.2605374,707.13,705.88,1.05996435]
[1735758314131,0.28283742,707.12,705.88,1.05996435]
[1735758314429,0.2605374,707.11,705.88,1.05996435]
[1735758315731,0.2605374,707.11,705.54,1.05996435]
[1735758315732,0.28284542,707.1,705.87,1.05996435]